bitfinex-derivatives/quotes_ETHF0:USTF0_20250404
["timestamp","ask_amount","ask_price","bid_price","bid_amount"]
[1743792743655,4.6616,1813.5,1813.4,0.00826902]
[1743792743656,5.76485,1813.5,1813.4,0.00826902]
[1743792743851,4.6616,1813.5,1813.4,0.00826902]
[1743792744066,8.97265,1813.5,1813.4,0.00826902]
[1743792744250,8.97265,1813.5,1813.4,1.41986902]
[1743792744646,4.6616,1813.5,1813.4,2.52317902]
[1743792744865,3.938,1813.5,1813.4,2.52317902]
[1743792745253,3.938,1813.5,1813.4,1.41986902]
[1743792745459,5.04125,1813.5,1813.4,1.41986902]
[1743792745754,3.938,1813.5,1813.4,2.52317902]
[1743792745952,1.1032,1813.6,1813.4,1.41986902]
[1743792746154,5.3619,1813.7,1813.5,1.4341]
[1743792746355,3.938,1813.7,1813.6,1.10319]
[1743792746751,3.938,1813.7,1813.5,2.5373]
[1743792746946,5.04116,1813.7,1813.5,1.4341]
[1743792747159,5.04116,1813.7,1813.6,1.4341]
[1743792747353,9.78106,1813.7,1813.6,1.4341]
[1743792747554,6.57326,1813.7,1813.6,1.4341]
[1743792748055,5.04116,1813.7,1813.6,1.4341]
[1743792748651,1.10325,1813.5,1813.4,0.00826902]
[1743792748851,4.31105,1813.5,1813.4,0.00826902]
[1743792749246,5.00885,1813.5,1813.4,0.00826902]
[1743792749453,7.50885,1813.5,1813.4,0.00826902]
[1743792749646,1.80105,1813.5,1813.4,0.00826902]
[1743792750254,8.94685,1813.5,1813.4,0.00826902]
[1743792750553,8.94685,1813.5,1813.4,1.41396902]
[1743792751256,5.73905,1813.5,1813.4,1.41396902]
[1743792751455,4.6358,1813.5,1813.4,1.41396902]
[1743792751657,4.6797,1813.8,1813.4,5.40705172]
[1743792751853,4.6797,1813.8,1813.5,1.5213827]
[1743792752054,4.6797,1813.8,1813.6,42.3302]
[1743792752367,5.78282,1813.8,1813.7,1.5302]
[1743792753165,5.78277,1813.8,1813.7,1.5302]
[1743792753356,4.6797,1813.8,1813.7,1.5302]
[1743792753557,1.82842,1813.9,1813.7,3.41866142]
[1743792753758,4.6634,1813.9,1813.7,1.5302]
[1743792753959,4.6634,1813.9,1813.8,0.78530088]
[1743792754258,4.6634,1813.9,1813.8,0.78530118]
[1743792754458,3.938,1813.9,1813.8,0.78530118]
[1743792754662,3.938,1814.0,1813.8,3.41852118]
[1743792754863,5.59296,1814.0,1813.8,1.5302]
[1743792755065,5.59296,1814.0,1813.9,1.52]
[1743792755261,7.06006,1814.0,1813.9,1.52]
[1743792755962,6.50806,1814.0,1813.9,1.52]
[1743792756270,5.59296,1814.0,1813.9,1.52]
[1743792756662,1.65495,1814.0,1813.9,1.52]
[1743792756867,0.552,1814.0,1813.9,2.30559955]
[1743792757068,0.7282,1814.1,1813.9,2.30559955]
[1743792757262,5.21326902,1814.2,1814.0,2.30557969]
[1743792757461,0.00826902,1814.2,1814.1,3.40881782]
[1743792758065,0.00826902,1814.2,1814.1,2.30592782]
[1743792758465,1.11109902,1814.2,1814.1,2.30592782]
[1743792759069,0.00826902,1814.2,1814.1,3.40881782]
[1743792759766,0.00826902,1814.2,1814.1,2.62289]
[1743792760071,0.00826902,1814.2,1814.1,3.4087651]
[1743792762070,1.11109902,1814.2,1814.1,2.3058751]
[1743792762663,1.11109902,1814.2,1814.1,1.52]
[1743792762866,0.00826902,1814.2,1814.1,2.62289]
[1743792765369,1.11109902,1814.2,1814.1,1.52]
[1743792765574,0.00826902,1814.2,1814.1,1.52]
[1743792766474,1.11109902,1814.2,1814.1,1.52]
[1743792766676,0.00826902,1814.2,1814.1,1.52]
[1743792766874,1.11109902,1814.2,1814.1,1.52]
[1743792768181,4.31889902,1814.2,1814.1,1.52]
[1743792768381,1.10313,1813.7,1813.6,3.2078]
[1743792768685,3.936,1813.9,1813.6,0.6974]
[1743792768883,3.936,1813.9,1813.6,1.80056]
[1743792769083,5.03903,1813.9,1813.6,1.80055]
[1743792769284,5.03903,1813.9,1813.6,0.6974]
[1743792769581,5.03905,1813.9,1813.6,1.80059]
[1743792769789,3.936,1813.9,1813.7,2.2577007]
[1743792770082,5.03905,1813.9,1813.8,1.4723]
[1743792770481,6.57155,1813.9,1813.8,1.4723]
[1743792772784,1.10325,1813.5,1813.4,0.00826902]
[1743792773391,1.10344,1813.2,1813.1,0.7685]
[1743792773586,5.03939,1813.3,1813.1,0.7685]
[1743792773787,3.936,1813.3,1813.1,0.7685]
[1743792774083,5.03942,1813.3,1813.1,0.7685]
[1743792774280,1.10335,1813.4,1813.2,1.4098]
[1743792774483,1.10338,1813.3,1813.2,1.4098]
[1743792775489,4.31118,1813.3,1813.2,1.4098]
[1743792775685,5.07168,1813.3,1813.2,1.4098]
[1743792776183,2.62588,1813.3,1813.2,1.4098]
[1743792776390,3.17788,1813.3,1813.2,1.4098]
[1743792776787,1.3125,1813.3,1813.2,1.4098]
[1743792776990,2.41588,1813.3,1813.2,1.4098]
[1743792777184,5.62368,1813.3,1813.2,1.4098]
[1743792777391,7.15568,1813.3,1813.2,1.4098]
[1743792777991,1.10344,1813.2,1813.1,0.00826902]
[1743792778184,2.75878,1813.1,1812.5,3.2078]
[1743792778492,3.2078,1812.9,1812.6,1.4463]
[1743792778681,4.6747,1813.0,1812.6,4.6541]
[1743792778980,1.10372,1812.8,1812.6,1.4463]
[1743792779183,1.10372,1812.8,1812.7,1.466]
[1743792779789,5.05421902,1812.9,1812.7,1.466]
[1743792779993,0.74276902,1812.9,1812.7,1.466]
[1743792780186,0.00826902,1812.9,1812.8,1.10368]
[1743792780383,0.00826902,1812.9,1812.7,2.5697]
[1743792780586,0.00826902,1812.9,1812.8,0.7402]
[1743792780788,3.2078,1813.3,1812.9,1.10362]
[1743792780987,3.2078,1813.3,1813.0,42.9893]
[1743792781187,1.10344,1813.2,1813.1,1.466]
[1743792781492,0.552,1813.4,1813.1,1.466]
[1743792781794,7.1438,1813.7,1813.4,1.10328]
[1743792781995,3.936,1813.7,1813.5,1.466]
[1743792782298,1.10319,1813.6,1813.5,1.466]
[1743792785090,1.10319,1813.6,1813.4,0.00826902]
[1743792785091,1.10325,1813.5,1813.4,0.00826902]
[1743792785285,7.27324,1813.6,1813.4,0.00826902]
[1743792785490,1.10325,1813.5,1813.4,0.00826902]
[1743792785691,4.31105,1813.5,1813.4,0.00826902]
[1743792785999,5.77765,1813.5,1813.4,0.00826902]
[1743792786499,1.4666,1813.5,1813.4,0.00826902]
[1743792786698,4.6751,1813.6,1813.4,1.11156902]
[1743792786998,5.77829,1813.6,1813.5,1.4317]
[1743792787296,8.98609,1813.6,1813.5,1.4317]
[1743792788502,5.77829,1813.6,1813.5,1.4317]
[1743792789199,8.98609,1813.6,1813.5,1.4317]
[1743792789401,1.10325,1813.5,1813.4,0.00826902]
[1743792789798,4.6751,1813.6,1813.4,0.00826902]
[1743792790103,5.77832,1813.6,1813.4,0.00826902]
[1743792790495,5.77832,1813.6,1813.4,1.51156902]
[1743792790701,1.10325,1813.5,1813.4,1.51156902]
[1743792791600,2.58185,1813.5,1813.4,1.51156902]
[1743792791991,5.77834,1813.6,1813.4,1.51156902]
[1743792792190,4.6751,1813.6,1813.4,1.51156902]
[1743792792391,1.11141902,1813.7,1813.4,1.51156902]
[1743792792599,5.04741902,1813.7,1813.5,1.5173]
[1743792792799,5.04741902,1813.7,1813.6,1.4396]
[1743792792999,1.10325,1813.5,1813.4,0.00826902]
[1743792793200,1.10325,1813.5,1813.4,1.44786902]
[1743792795402,1.10324,1813.6,1813.4,2.55117902]
[1743792795703,1.10324,1813.6,1813.5,1.4856]
[1743792796106,1.65524,1813.6,1813.5,1.4856]
[1743792796307,1.10324,1813.6,1813.5,1.4856]
[1743792796511,1.65524,1813.6,1813.5,1.4856]
[1743792797509,3.05714,1813.6,1813.5,1.4856]
[1743792798198,1.65524,1813.6,1813.5,1.4856]
[1743792798903,1.10325,1813.5,1813.4,0.00826902]
[1743792799105,4.31105,1813.5,1813.4,0.00826902]
[1743792799301,2.50515,1813.5,1813.4,0.00826902]
[1743792800204,1.10325,1813.5,1813.4,0.00826902]
[1743792800697,1.10325,1813.5,1813.4,1.48986902]
[1743792800902,0.552,1813.6,1813.4,1.48986902]
[1743792801208,1.65521,1813.6,1813.4,2.59315902]
[1743792801399,1.10321,1813.6,1813.4,2.59315902]
[1743792801600,1.10321,1813.6,1813.5,2.2193]
[1743792802201,1.10321,1813.6,1813.5,1.4816]
[1743792802202,4.86301,1813.6,1813.5,1.4816]
[1743792802405,1.10325,1813.5,1813.4,0.00826902]
[1743792802604,2.51565,1813.5,1813.4,0.00826902]
[1743792803806,3.9124,1813.5,1813.1,0.7377]
[1743792804007,4.31124,1813.2,1813.1,2.2677]
[1743792804610,1.10362,1812.9,1812.8,0.7046]
[1743792804910,1.10362,1812.9,1812.8,1.49174625]
[1743792805112,3.935,1813.0,1812.8,1.49174625]
[1743792805311,8.24627,1813.2,1813.0,1.10355]
[1743792805609,0.552,1813.6,1813.1,4.74520371]
[1743792805802,0.552,1813.8,1813.3,5.96625]
[1743792805803,1.65508,1813.8,1813.3,5.96625]
[1743792806102,1.11141902,1813.7,1813.5,4.31103]
[1743792806307,4.31921902,1813.7,1813.6,42.2878]
[1743792806507,1.11141902,1813.7,1813.6,42.2878]
[1743792806707,0.00826902,1813.7,1813.6,43.0745587]
[1743792807007,0.00826902,1813.7,1813.6,49.8855487]
[1743792808105,1.11139902,1813.7,1813.6,1.5371587]
[1743792808303,1.1033,1813.5,1813.3,0.7389]
[1743792808502,1.1033,1813.5,1813.4,0.7869831]
[1743792808704,2.62391,1813.6,1813.4,1.8902831]
[1743792808905,2.62391,1813.6,1813.5,1.4805]
[1743792809411,1.10329,1813.5,1813.3,0.7389]
[1743792809711,1.10329,1813.5,1813.4,1.4588]
[1743792810007,1.10329,1813.5,1813.4,2.24644544]
[1743792810210,4.31109,1813.5,1813.4,1.4588]
[1743792810407,1.10338,1813.3,1813.2,0.7001]
[1743792810711,1.10349,1813.2,1813.0,1.4588]
[1743792811011,1.5355,1813.2,1813.1,0.78776644]
[1743792811208,3.935,1813.3,1813.1,0.78776644]
[1743792811408,5.03838,1813.3,1813.2,2.24656644]
[1743792811603,5.03838,1813.3,1813.2,1.4588]
[1743792811809,3.935,1813.3,1813.2,3.34990967]
[1743792812313,4.31108,1813.5,1813.2,4.74646967]
[1743792812514,4.31108,1813.5,1813.3,4.80172967]
[1743792812812,1.10321,1813.6,1813.4,2.24906967]
[1743792813000,1.10321,1813.6,1813.5,1.4614]
[1743792813204,6.87126902,1813.7,1813.5,1.4614]
[1743792813407,1.10319,1813.6,1813.5,1.4614]
[1743792813614,1.10319,1813.6,1813.5,2.24897387]
[1743792813814,6.87126902,1813.7,1813.5,2.24898585]
[1743792814114,7.97439902,1813.7,1813.6,1.4614]
[1743792814415,1.10327,1813.5,1813.3,1.4493]
[1743792814707,1.10325,1813.5,1813.4,2.24903783]
[1743792815803,1.4466,1813.6,1813.4,2.24903602]
[1743792816005,1.4466,1813.6,1813.3,1.4493]
[1743792816006,1.10331,1813.4,1813.3,1.4493]
[1743792816210,1.10338,1813.3,1813.1,2.52297]
[1743792816408,1.65538,1813.3,1813.2,1.4195]
[1743792816616,4.63348,1813.3,1813.2,1.4195]
[1743792816816,1.1035,1813.1,1813.0,0.717]
[1743792817012,3.934,1813.1,1812.9,1.4195]
[1743792817316,1.10368,1812.8,1812.7,0.00826902]
[1743792817514,8.24548,1812.8,1812.7,0.00826902]
[1743792818105,10.47638,1812.8,1812.7,0.00826902]
[1743792821214,1.10386,1812.5,1812.4,1.4528]
[1743792821413,1.10398,1812.3,1812.2,1.4528]
[1743792821615,4.31178,1812.3,1812.2,1.4528]
[1743792822008,5.72338,1812.3,1812.2,1.4528]
[1743792823221,4.6194,1812.3,1812.2,1.4528]
[1743792823519,4.31178,1812.3,1812.2,1.4528]
[1743792824619,1.10405,1812.2,1812.1,0.00826902]
[1743792824922,6.51705,1812.2,1812.1,0.00826902]
[1743792825617,6.51705,1812.2,1811.9,1.4876]
[1743792825618,1.10429,1811.8,1811.7,1.5039]
[1743792825827,8.24709,1811.8,1811.7,1.4876]
[1743792826017,9.6428,1811.8,1811.1,3.2078]
[1743792826320,4.31233,1811.4,1811.3,1.4876]
[1743792826517,8.24833,1811.4,1811.3,1.4876]
[1743792826715,5.04053,1811.4,1811.3,1.4876]
[1743792827424,8.24833,1811.4,1811.3,1.4876]
[1743792827624,1.10464,1811.3,1811.1,41.5361]
[1743792827824,2.62124,1811.3,1811.2,1.4219]
[1743792828927,1.10472,1811.1,1811.0,41.541]
[1743792829129,7.1428,1811.1,1811.0,42.9629]
[1743792829326,8.24752,1811.1,1811.0,1.4219]
[1743792829725,7.1428,1811.1,1811.0,1.4219]
[1743792830321,8.24752,1811.1,1811.0,1.4219]
[1743792831028,1.10488,1810.9,1810.7,0.7612]
[1743792831327,3.936,1810.8,1810.7,2.2099]
[1743792832228,5.0409,1810.8,1810.7,2.2099]
[1743792832431,1.10496,1810.7,1810.4,6.97512]
[1743792832628,2.62956,1810.7,1810.5,1.4487]
[1743792832928,1.5246,1810.7,1810.5,2.55378]
[1743792833126,2.62957,1810.7,1810.5,4.6565]
[1743792833324,1.5246,1810.7,1810.5,5.76156]
[1743792833520,5.04093,1810.8,1810.5,5.76156]
[1743792834026,3.936,1810.8,1810.7,1.10496]
[1743792834226,3.936,1810.8,1810.6,1.10498]
[1743792834433,3.936,1810.8,1810.7,1.401]
[1743792834434,5.0409,1810.8,1810.7,1.401]
[1743792834627,1.105,1810.7,1810.5,3.2078]
[1743792834819,2.6407,1810.7,1810.6,1.401]
[1743792835025,2.64066,1810.7,1810.6,1.401]
[1743792835230,1.5357,1810.7,1810.6,1.401]
[1743792835427,3.936,1810.8,1810.6,1.401]
[1743792835738,3.936,1810.8,1810.6,2.50598]
[1743792836233,5.0409,1810.8,1810.7,1.401]
[1743792836436,5.59370001,1810.8,1810.7,1.401]
[1743792836731,7.12940001,1810.8,1810.7,1.401]
[1743792837834,6.02450001,1810.8,1810.7,1.401]
[1743792838135,4.48880001,1810.8,1810.7,1.401]
[1743792838428,3.938,1810.9,1810.7,2.50594]
[1743792838636,3.938,1810.9,1810.7,1.401]
[1743792838842,4.49080001,1810.9,1810.7,2.50592]
[1743792839541,7.12034001,1810.9,1810.7,1.401]
[1743792839837,7.12035001,1810.9,1810.7,2.50596]
[1743792840038,6.01550001,1810.9,1810.7,1.401]
[1743792840238,7.12035001,1810.9,1810.7,2.50593]
[1743792840433,3.2078,1810.8,1810.7,2.50596]
[1743792840839,6.01550001,1810.9,1810.8,1.1049]
[1743792841136,3.938,1810.9,1810.8,1.1049]
[1743792841335,0.00826902,1811.4,1811.3,1.10459]
[1743792841536,4.49906903,1811.4,1811.2,1.10463]
[1743792841840,4.49906903,1811.4,1811.3,1.10459]
[1743792842042,4.49906903,1811.4,1811.2,1.10461]
[1743792842043,5.99096903,1811.4,1811.2,1.10461]
[1743792842241,7.09549903,1811.4,1811.3,1.4585]
[1743792842539,5.99096903,1811.4,1811.3,2.56309]
[1743792843240,7.09549903,1811.4,1811.3,1.4585]
[1743792843437,5.99096903,1811.4,1811.3,1.4585]
[1743792843632,5.99096903,1811.4,1811.3,2.56309]
[1743792843829,4.49906903,1811.4,1811.3,1.4585]
[1743792844029,5.60359903,1811.4,1811.3,1.4585]
[1743792844344,1.10466,1811.2,1811.0,1.10477]
[1743792844638,1.1047,1811.2,1811.0,1.4582]
[1743792844840,1.10471,1811.2,1811.0,1.4582]
[1743792845038,1.10471,1811.2,1811.0,2.56296]
[1743792845039,1.4987,1811.2,1811.0,2.56296]
[1743792845236,0.7403,1811.3,1811.1,1.10472]
[1743792845436,5.05271,1811.3,1811.1,1.4582]
[1743792845634,1.84491,1811.3,1811.1,2.56292]
[1743792845837,2.239,1811.3,1811.1,2.56292]
[1743792846029,3.3436,1811.3,1811.2,1.4779]
[1743792846234,2.239,1811.3,1811.2,1.4779]
[1743792846434,3.34359,1811.3,1811.2,1.4779]
[1743792846628,6.55139,1811.3,1811.2,1.4779]
[1743792846829,6.55139,1811.3,1810.9,0.7383]
[1743792846830,1.1047,1811.2,1810.9,0.7383]
[1743792847041,3.938,1811.1,1811.0,2.58268]
[1743792847343,1.10482,1811.0,1810.8,0.7386]
[1743792847532,1.3959,1811.0,1810.8,2.2165]
[1743792847727,1.3959,1811.0,1810.8,2.5828]
[1743792847934,2.50068,1811.0,1810.9,1.4779]
[1743792848238,8.97286,1811.1,1810.9,1.4779]
[1743792848444,7.1458,1811.1,1811.0,1.10478]
[1743792848636,8.25052,1811.1,1810.9,1.4779]
[1743792848937,0.7403,1811.3,1811.2,1.10465]
[1743792849144,1.66562903,1811.4,1811.1,1.10468]
[1743792849341,0.56106903,1811.4,1811.2,1.10464]
[1743792849539,1.66559903,1811.4,1811.3,1.5396]
[1743792849736,0.56106903,1811.4,1811.3,1.5396]
[1743792849937,0.56106903,1811.4,1811.3,2.32236226]
[1743792850141,1.66559903,1811.4,1811.3,1.5396]
[1743792850345,3.19099903,1811.4,1811.3,1.5396]
[1743792851245,0.00826902,1811.4,1811.3,3.42833268]
[1743792851441,0.00826902,1811.4,1811.3,3.42841001]
[1743792852141,0.00826902,1811.4,1811.3,2.32382001]
[1743792852337,1.11279902,1811.4,1811.3,2.32382001]
[1743792853241,0.00826902,1811.4,1811.3,3.42963399]
[1743792853438,1.11279902,1811.4,1811.3,2.32504399]
[1743792854033,3.37049902,1811.4,1811.3,2.32504399]
[1743792854238,3.37049902,1811.4,1811.3,0.78544399]
[1743792854438,4.07069902,1811.4,1811.3,0.78544399]
[1743792854742,1.10465,1811.2,1811.1,1.4571]
[1743792854942,8.24945,1811.2,1811.1,2.24359243]
[1743792855344,3.937,1811.2,1811.1,2.24359243]
[1743792855745,3.937,1811.2,1811.1,3.34831243]
[1743792855946,5.59445001,1811.2,1811.1,2.24359243]
[1743792856151,4.48980001,1811.2,1811.1,2.24359243]
[1743792857148,4.48980001,1811.2,1811.1,2.24443769]
[1743792857446,5.59445001,1811.2,1811.1,2.24443769]
[1743792857647,4.48980001,1811.2,1811.1,2.24443769]
[1743792857849,4.48980001,1811.2,1811.1,3.34915769]
[1743792858048,5.59445001,1811.2,1811.1,2.24443769]
[1743792858247,4.48980001,1811.2,1811.1,3.34915769]
[1743792858437,3.937,1811.2,1811.1,3.34915769]
[1743792858841,4.48980001,1811.2,1811.1,3.34920344]
[1743792859242,3.937,1811.2,1811.1,3.34920344]
[1743792860050,1.10461,1811.3,1811.2,1.10465]
[1743792860249,1.10461,1811.3,1811.2,2.28938344]
[1743792860444,4.49806903,1811.4,1811.2,3.39403344]
[1743792860646,5.60259903,1811.4,1811.3,2.28938344]
[1743792861252,5.60259903,1811.4,1811.3,3.39397344]
[1743792861253,4.49806903,1811.4,1811.3,3.39397344]
[1743792861440,5.60259903,1811.4,1811.3,2.28938344]
[1743792861953,5.60259903,1811.4,1811.3,2.27993932]
[1743792862455,4.49806903,1811.4,1811.3,3.38452932]
[1743792862646,5.60259903,1811.4,1811.3,2.27993932]
[1743792862846,4.49806903,1811.4,1811.3,3.38452932]
[1743792863047,5.60259903,1811.4,1811.3,3.38452932]
[1743792863246,5.60259903,1811.4,1811.3,2.27993932]
[1743792863447,7.14799903,1811.4,1811.3,2.27993932]
[1743792863648,2.76152,1811.3,1810.6,3.2078]
[1743792863951,2.76152,1811.3,1810.6,2.54096]
[1743792863952,4.31262,1811.0,1810.6,2.54096]
[1743792864149,3.2078,1810.8,1810.3,1.10517]
[1743792864349,4.31289,1810.5,1810.3,1.414]
[1743792864649,2.76227,1810.8,1810.3,2.5192]
[1743792864650,3.937,1810.4,1810.3,2.5192]
[1743792865749,3.937,1810.6,1810.5,1.10503]
[1743792866061,3.937,1810.6,1810.4,1.10513]
[1743792866353,1.4517,1810.5,1810.4,1.10514]
[1743792866745,3.937,1810.6,1810.5,1.10508]
[1743792868248,3.937,1810.6,1810.4,1.10509]
[1743792868442,1.10508,1810.5,1810.3,1.10515]
[1743792868649,2.54038,1810.5,1810.3,1.10515]
[1743792868852,1.4353,1810.5,1810.2,0.7028]
[1743792869154,2.5404,1810.5,1810.3,1.10518]
[1743792869348,1.10519,1810.4,1810.2,1.80802]
[1743792869856,1.10519,1810.4,1810.2,1.80803]
[1743792870052,1.10519,1810.4,1810.2,0.7028]
[1743792870551,2.93886902,1810.5,1810.2,1.80805]
[1743792870754,2.52728,1810.4,1810.2,1.80804]
[1743792871151,1.1052,1810.3,1810.2,0.7028]
[1743792871351,5.59505001,1810.3,1810.1,1.10533]
[1743792871657,5.59505001,1810.3,1809.8,1.10547]
[1743792871658,3.76060001,1810.2,1809.8,1.10547]
[1743792871857,0.7609,1810.1,1809.9,40.8]
[1743792872148,3.937,1810.0,1809.9,41.90545]
[1743792872357,3.937,1810.0,1809.9,1.10545]
[1743792872551,0.55280001,1810.2,1810.1,1.10533]
[1743792872747,3.2078,1810.4,1810.0,3.53086]
[1743792872953,3.76060001,1810.4,1810.3,1.1052]
[1743792873451,4.49806903,1810.5,1810.4,1.10514]
[1743792873857,3.94526902,1810.5,1810.3,1.10516]
[1743792874051,4.49806903,1810.5,1810.4,41.90514]
[1743792874246,4.49806903,1810.5,1810.3,1.10515]
[1743792874451,4.49806903,1810.5,1810.2,1.10523]
[1743792874452,5.60318903,1810.5,1810.2,1.10523]
[1743792874652,1.5301,1810.4,1810.2,1.10523]
[1743792874956,4.7379,1810.4,1810.2,1.10522]
[1743792875257,4.7379,1810.4,1810.2,1.10521]
[1743792875452,4.7379,1810.4,1810.0,4.6733]
[1743792875656,1.5301,1810.3,1810.1,1.10528]
[1743792875863,2.2575,1810.3,1810.0,2.57087]
[1743792876058,2.2575,1810.3,1810.0,1.4655]
[1743792876059,0.55280001,1810.2,1810.0,1.4655]
[1743792876358,6.02090001,1810.2,1810.0,1.4655]
[1743792876759,6.02090001,1810.2,1810.0,2.57088]
[1743792877166,6.02090001,1810.2,1810.0,1.4655]
[1743792877364,9.22870001,1810.2,1809.7,3.2078]
[1743792877655,2.64035,1810.1,1809.8,1.10551]
[1743792877860,2.6404,1810.0,1809.7,0.7123]
[1743792878060,2.6404,1810.0,1809.8,1.10551]
[1743792878260,5.04349,1809.9,1809.7,0.7123]
[1743792878448,5.04346,1809.9,1809.7,1.81782]
[1743792878654,6.57845,1809.9,1809.7,1.81782]
[1743792879264,6.57845,1809.9,1809.8,1.10551]
[1743792879561,3.938,1809.9,1809.8,1.10551]
[1743792879763,3.938,1810.1,1810.0,1.10539]
[1743792880568,5.04333,1810.1,1810.0,1.10539]
[1743792880766,3.938,1810.1,1809.9,1.1054]
[1743792880963,1.10547,1809.9,1809.7,1.81782]
[1743792881167,1.10547,1809.9,1809.7,0.7123]
[1743792881666,5.4053,1810.1,1809.7,0.7123]
[1743792881966,1.10541,1810.0,1809.9,1.10544]
[1743792882366,1.10543,1810.0,1809.9,1.10545]
[1743792882861,5.04338,1810.1,1810.0,1.10539]
[1743792883067,0.55280001,1810.2,1810.1,1.10533]
[1743792883268,1.65807001,1810.2,1810.1,1.10533]
[1743792883469,0.55280001,1810.2,1810.1,1.10533]
[1743792883764,1.65796001,1810.4,1810.3,1.1052]
[1743792884072,1.65798001,1810.4,1810.3,1.1052]
[1743792884368,1.10527,1810.2,1810.1,2.51708]
[1743792884757,3.31567001,1810.4,1810.1,2.51708]
[1743792884758,3.14000001,1810.4,1810.1,2.51708]
[1743792885057,3.14000001,1810.4,1810.2,1.4118]
[1743792885572,3.14000001,1810.4,1810.2,2.51706]
[1743792885768,0.00826902,1810.5,1810.3,1.10514]
[1743792886065,1.10524,1810.3,1810.0,0.742]
[1743792886270,5.04322,1810.3,1810.1,2.63629]
[1743792886569,5.3597,1810.3,1810.2,2.63627]
[1743792887171,3.938,1810.3,1810.2,2.63627]
[1743792887568,0.00826902,1810.5,1810.4,1.10514]
[1743792888268,0.00826902,1810.5,1810.4,2.57544]
[1743792888471,4.6815,1810.9,1810.8,1.1049]
[1743792888871,6.33914001,1810.9,1810.8,1.1049]
[1743792889074,5.23430001,1810.9,1810.8,1.1049]
[1743792889667,6.33914001,1810.9,1810.8,1.1049]
[1743792889964,6.33914001,1810.9,1810.7,1.49696902]
[1743792890366,6.33914001,1810.9,1810.8,1.1049]
[1743792890367,5.23430001,1810.9,1810.8,1.1049]
[1743792891270,6.33916001,1810.9,1810.7,1.49696902]
[1743792891774,5.23430001,1810.9,1810.8,1.1049]
[1743792892877,0.00826902,1811.0,1810.9,1.10484]
[1743792893077,4.48980001,1811.4,1811.3,1.10459]
[1743792893472,4.48980001,1811.4,1811.1,1.4988]
[1743792893772,2.2579,1811.5,1811.4,1.10453]
[1743792893977,6.1949,1811.5,1811.4,1.10453]
[1743792894179,6.74770001,1811.5,1811.4,1.10453]
[1743792894672,6.74770001,1811.5,1811.3,2.60335]
[1743792895175,1.4153,1811.4,1811.3,1.4988]
[1743792895474,1.4153,1811.4,1811.3,2.60339]
[1743792895677,4.6231,1811.4,1811.3,1.4988]
[1743792895878,5.3201,1811.4,1811.3,1.4988]
[1743792896176,5.87290001,1811.4,1811.3,2.60339]
[1743792896378,2.1123,1811.4,1811.3,2.60339]
[1743792896680,4.6699,1811.5,1811.4,1.10453]
[1743792896868,4.6699,1811.5,1811.1,1.1047]
[1743792896869,1.10462,1811.3,1811.1,1.1047]
[1743792897073,5.17590001,1811.4,1811.1,2.6499]
[1743792897270,2.1123,1811.3,1811.1,1.5452]
[1743792897476,1.4153,1811.2,1811.1,2.64991]
[1743792897673,1.4153,1811.2,1811.1,1.5452]
[1743792898266,0.697,1811.3,1811.1,1.5452]
[1743792898474,2.136,1811.3,1811.1,2.64989]
[1743792898675,4.86518001,1811.4,1811.2,1.5128]
[1743792898879,0.55280001,1811.4,1811.2,1.5128]
[1743792899079,1.10459,1811.3,1811.2,1.5128]
[1743792899672,2.54359,1811.3,1811.2,1.5128]
[1743792900375,1.10489,1810.9,1810.7,0.00826902]
[1743792900579,1.10486,1810.9,1810.7,2.62600902]
[1743792900880,1.10486,1810.9,1810.8,1.5128]
[1743792901184,2.51756,1810.9,1810.8,1.5128]
[1743792901478,1.1049,1810.8,1810.7,0.00826902]
[1743792901679,6.4361,1810.8,1810.7,0.00826902]
[1743792901979,3.2283,1810.8,1810.7,0.00826902]
[1743792902179,1.1049,1810.8,1810.7,0.00826902]
[1743792902774,1.1049,1810.8,1810.7,1.52016902]
[1743792902978,2.5176,1810.8,1810.7,1.52016902]
[1743792903576,5.04082,1811.0,1810.7,2.62507902]
[1743792903775,3.935,1810.9,1810.7,2.62507902]
[1743792903975,8.24764,1810.9,1810.8,1.396]
[1743792904281,8.24764,1810.9,1810.5,1.5089]
[1743792904282,2.76241,1810.7,1810.1,5.87]
[1743792904476,3.2078,1810.5,1810.2,1.396]
[1743792904778,1.10515,1810.4,1810.2,1.396]
[1743792904977,2.61589,1810.4,1810.2,1.396]
[1743792905379,1.1052,1810.3,1810.2,1.396]
[1743792905576,5.59300001,1810.3,1810.2,1.396]
[1743792905970,7.10370001,1810.3,1810.2,1.396]
[1743792906177,5.99850001,1810.3,1810.2,1.396]
[1743792906376,7.10370001,1810.3,1810.2,1.396]
[1743792907170,9.20630001,1810.3,1810.1,0.75556902]
[1743792907379,9.20630001,1810.3,1810.1,0.00826902]
[1743792907380,3.10987001,1810.2,1810.1,0.00826902]
[1743792907580,3.84927001,1810.2,1810.1,0.00826902]
[1743792909276,2.76333,1810.1,1809.6,1.1056]
[1743792909476,3.2078,1809.9,1809.6,1.1056]
[1743792909678,4.31326,1809.9,1809.7,1.4336]
[1743792909885,5.76506,1809.9,1809.7,1.4336]
[1743792910077,5.04043,1810.0,1809.8,1.10551]
[1743792910273,3.935,1810.0,1809.9,1.4197]
[1743792910483,3.935,1810.0,1809.9,2.52515]
[1743792910784,1.10533,1810.1,1809.9,1.4197]
[1743792910981,5.04139,1810.0,1809.9,1.4197]
[1743792911182,3.936,1810.0,1809.9,1.4197]
[1743792911575,5.04139,1810.0,1809.9,1.4197]
[1743792912483,3.936,1810.0,1809.9,1.4197]
[1743792912682,3.936,1810.0,1809.9,2.52515]
[1743792912883,5.04139,1810.0,1809.9,1.4197]